bitfinex/quotes_ETHUSD_20220213
["timestamp","ask_amount","ask_price","bid_price","bid_amount"]
[1644767150370,5.1249767,2932.9,2932.8,0.0171647]
[1644767150770,3.65674568,2932.9,2932.8,0.0171647]
[1644767150969,3.66038893,2932.9,2932.8,0.0171647]
[1644767151621,3.49008893,2932.9,2932.8,0.0171647]
[1644767151823,5.19584893,2932.9,2932.8,0.0171647]
[1644767152022,4.34293893,2932.9,2932.8,0.0171647]
[1644767152923,4.51323893,2932.9,2932.8,0.0171647]
[1644767153926,0.07091223,2932.9,2932.8,0.0171647]
[1644767155971,0.07091223,2932.9,2932.8,0.04814737]
[1644767160622,0.07091223,2932.9,2932.8,0.0171647]
[1644767163565,0.07091223,2932.9,2932.7,0.04230434]
[1644767163566,0.13024663,2932.5,2932.2,0.00315586]
[1644767163765,0.13024663,2932.5,2932.2,0.90102751]
[1644767164667,0.13024663,2932.5,2932.2,0.85578586]
[1644767164871,0.13024663,2932.5,2932.2,0.86709527]
[1644767165072,0.13024663,2932.5,2932.2,1.71971527]
[1644767165276,0.13024663,2932.5,2932.3,0.3]
[1644767165471,0.13024663,2932.5,2932.3,0.30315586]
[1644767165671,0.13024663,2932.5,2932.3,1.30315586]
[1644767165871,0.13024663,2932.5,2932.3,0.30315586]
[1644767166071,0.13024663,2932.5,2932.3,0.31446518]
[1644767166320,0.13024663,2932.5,2932.3,2.01945518]
[1644767166521,0.13024663,2932.5,2932.4,0.85246]
[1644767166922,0.13024663,2932.5,2932.4,1.85246]
[1644767168823,0.06753719,2932.9,2932.5,4.95]
[1644767169023,0.06753719,2932.9,2932.6,1.70459]
[1644767169223,0.06753719,2932.9,2932.7,0.1703]
[1644767169424,0.06753719,2932.9,2932.7,0.17345586]
[1644767169825,0.06753719,2932.9,2932.7,0.00315586]
[1644767170086,0.06753719,2932.9,2932.7,1.03547849]
[1644767170266,0.1703,2933.8,2932.7,1.03547849]
[1644767170267,0.1703,2933.8,2933.0,0.85231]
[1644767170470,0.86380354,2933.9,2933.1,6.17532833]
[1644767170667,0.8525,2933.9,2933.2,0.3]
[1644767170866,0.86380493,2933.9,2933.2,1.60315586]
[1644767171065,0.86380493,2933.9,2933.2,1.25315586]
[1644767171265,0.86380493,2933.9,2933.5,1.02066082]
[1644767171477,0.86380493,2933.9,2933.5,1.87291082]
[1644767171970,0.86380493,2933.9,2933.5,1.02066082]
[1644767171971,0.8525,2933.9,2933.5,1.02066082]
[1644767172170,0.8525,2933.9,2933.0,0.0113094]
[1644767172171,1.6207764,2933.8,2933.0,0.0113094]
[1644767172371,1.4504764,2933.7,2933.0,0.0113094]
[1644767172572,1.4504764,2933.7,2933.0,0.8637094]
[1644767172773,0.01130557,2933.9,2933.0,0.8637094]
[1644767172974,1.45051345,2933.8,2933.0,0.8637094]
[1644767173172,1.45051345,2933.8,2933.0,2.03848307]
[1644767173373,1.62081345,2933.7,2933.0,0.01130886]
[1644767173573,0.01130504,2933.9,2933.0,0.01130886]
[1644767173821,1.62083105,2933.8,2933.0,0.01130886]
[1644767174117,1.45053105,2933.7,2933.0,0.01130886]
[1644767174316,1.45053105,2933.7,2932.8,3.01007]
[1644767174517,3.40780318,2933.6,2933.0,0.01130876]
[1644767174718,0.12,2933.5,2933.0,0.01130876]
[1644767174920,0.12,2933.5,2933.0,0.86372876]
[1644767175122,0.12,2933.5,2933.0,1.16372876]
[1644767175322,0.12,2933.5,2933.0,1.31130876]
[1644767175525,0.12,2933.5,2933.0,0.3]
[1644767175722,0.12,2933.5,2933.1,0.85233]
[1644767176023,0.12,2933.5,2933.1,0.05565203]
[1644767176822,1.45058889,2933.4,2933.1,0.05565203]
[1644767177222,0.17360405,2933.6,2933.1,0.05565203]
[1644767177223,1.57058889,2933.3,2933.1,0.05565203]
[1644767177421,0.17360405,2933.6,2933.1,0.05565203]
[1644767177670,1.45060395,2933.5,2933.1,0.05565203]
[1644767178266,1.45060395,2933.5,2933.2,0.85236]
[1644767178668,1.453908,2933.6,2933.2,0.85236]
[1644767178874,1.45060395,2933.5,2933.2,0.85236]
[1644767179073,1.453908,2933.6,2933.4,1.15019063]
[1644767179274,1.45048338,2933.5,2933.4,1.15019063]
[1644767179475,1.45378743,2933.6,2933.4,2.00242063]
[1644767179674,1.45378743,2933.6,2933.4,2.85470063]
[1644767179873,1.45378743,2933.6,2933.4,3.85470063]
[1644767180876,1.45048338,2933.5,2933.4,3.85470063]
[1644767181074,1.45048338,2933.5,2933.4,3.00242063]
[1644767181317,1.57218804,2933.5,2933.4,3.00242063]
[1644767181720,1.57218804,2933.5,2933.4,2.15019063]
[1644767181920,1.57218804,2933.5,2933.4,1.15019063]
[1644767182322,1.45218804,2933.5,2933.2,1.9078298]
[1644767182522,1.45048338,2933.4,2933.2,2.7601798]
[1644767182822,0.00170466,2933.5,2933.2,1.0554698]
[1644767182823,1.45048338,2933.3,2933.2,1.0554698]
[1644767183021,1.45048338,2933.3,2933.2,0.0554698]
[1644767183225,0.00170466,2933.5,2933.2,0.0554698]
[1644767183624,0.11093959,2933.1,2933.0,0.86373865]
[1644767183822,0.11093959,2933.1,2932.9,1.0]
[1644767184021,1.45048338,2933.0,2932.9,1.0]
[1644767184221,1.45048338,2933.0,2932.9,1.6]
[1644767184622,0.11093959,2933.1,2932.9,2.62546937]
[1644767184822,0.11093959,2933.1,2933.0,0.85244]
[1644767185081,0.11093959,2933.1,2932.9,2.62546937]
[1644767185082,1.55241404,2933.1,2932.9,0.85244]
[1644767185276,1.55241404,2933.1,2932.8,7.48]
[1644767185277,1.45055561,2933.0,2932.8,7.48]
[1644767185477,1.45055561,2933.0,2932.9,0.01130829]
[1644767186180,1.45055561,2933.0,2932.3,1.05299836]
[1644767186578,1.45055561,2933.0,2932.8,0.01130838]
[1644767187578,1.45055561,2933.0,2932.4,0.85574858]
[1644767187779,1.45055561,2933.0,2932.8,0.01130846]
[1644767188478,3.34700392,2932.9,2932.8,0.01130846]
[1644767188681,1.45055561,2932.9,2932.4,0.00314858]
[1644767188921,1.45055561,2932.8,2932.4,0.00314858]
[1644767189122,1.45055561,2932.7,2932.3,0.85261]
[1644767189323,0.10185843,2933.1,2932.4,0.85574858]
[1644767189523,1.45076556,2933.0,2932.4,1.70521]
[1644767189725,3.50472334,2932.9,2932.5,0.00314858]
[1644767189923,3.50472334,2932.9,2931.6,10.8544]
[1644767189924,1.62106556,2932.8,2932.3,0.00314858]
[1644767190123,2.0986894,2932.7,2932.1,0.00314858]
[1644767190323,1.45076556,2932.7,2932.6,0.01130881]
[1644767190523,3.32732803,2932.7,2932.6,0.01130881]
[1644767190723,6.15672756,2932.7,2932.6,0.01130881]
[1644767191127,4.45072756,2932.7,2931.9,0.00314858]
[1644767191330,1.62156803,2932.6,2931.9,0.00314858]
[1644767191528,1.8764,2932.6,2932.5,0.01130889]
[1644767191824,3.97542787,2932.6,2932.5,0.01130889]
[1644767192025,5.03350403,2932.6,2932.5,0.01130889]
[1644767192227,8.78301695,2932.6,2932.5,0.01130889]
[1644767192425,8.78301695,2932.6,2931.7,0.00314858]
[1644767192426,0.85291,2932.5,2931.7,0.00314858]
[1644767192669,5.44682646,2932.4,2932.0,0.04524305]
[1644767192868,1.45110403,2932.3,2932.0,0.04524305]
[1644767193070,0.12,2932.1,2932.0,0.04524305]
[1644767193268,1.45110403,2932.1,2932.0,0.04524305]
[1644767193468,1.45110403,2932.1,2931.4,0.00314858]
[1644767193769,1.45110403,2932.1,2931.9,0.01130993]
[1644767194268,3.37108501,2932.0,2931.9,0.01130993]
[1644767194467,4.82218904,2932.0,2931.9,0.01130993]
[1644767194668,4.82218904,2932.0,2931.4,0.00314858]
[1644767194870,1.45110403,2931.9,2931.4,0.00314858]
[1644767195071,1.45110403,2931.9,2931.8,0.0113101]
[1644767195269,3.5017168,2931.9,2931.8,0.0113101]
[1644767195670,3.47173772,2932.1,2931.8,0.0113101]
[1644767195873,3.45716783,2932.1,2931.4,0.00314858]
[1644767196317,3.45716783,2932.1,2931.7,0.01131027]
[1644767197122,3.83925428,2932.3,2931.4,0.00314858]
[1644767197323,1.45109742,2932.2,2931.8,0.01131019]
[1644767198223,3.33988402,2932.1,2931.8,0.01131019]
[1644767198423,3.33988402,2932.1,2931.4,0.00314858]
[1644767198625,3.33988402,2932.1,2931.9,0.01131001]
[1644767198824,3.35333014,2932.2,2931.9,0.01131001]
[1644767199026,1.45109492,2932.1,2931.9,0.01131001]
[1644767199423,3.34696796,2932.0,2931.9,0.01131001]
[1644767199623,3.34696796,2932.0,2931.4,0.00314858]
[1644767199824,3.49031365,2932.2,2931.9,0.01131001]
[1644767200268,1.45109453,2932.1,2931.9,0.01131001]
[1644767200467,3.51751723,2932.0,2931.9,0.01131001]
[1644767200670,3.51751723,2932.0,2931.1,3.7362]
[1644767200671,1.45127654,2932.0,2931.2,0.00314858]
[1644767200869,3.72635106,2931.9,2931.2,0.00314858]
[1644767201067,3.72635106,2931.9,2931.4,0.04524684]
[1644767201272,0.1705,2932.0,2931.4,0.04524684]
[1644767201472,0.00380218,2932.1,2931.4,0.04524684]
[1644767201676,1.70609,2931.9,2931.4,0.04524684]
[1644767201872,0.12,2931.7,2931.3,0.04092649]
[1644767202172,3.47030938,2931.8,2931.0,0.00314858]
[1644767202173,0.12,2931.4,2931.1,0.04206333]
[1644767202373,0.12,2931.4,2931.2,0.04524857]
[1644767203073,3.47030938,2931.8,2931.1,0.04206333]
[1644767203477,3.47030938,2931.8,2931.2,0.01131122]
[1644767203922,1.45140106,2931.7,2931.2,0.01131122]
[1644767204120,3.49263219,2931.6,2931.2,0.01131122]
[1644767204325,3.49263219,2931.6,2931.1,0.04206333]
[1644767204522,4.19082695,2931.8,2931.1,0.04206333]
[1644767204822,1.18824311,2931.6,2931.3,0.01131096]
[1644767205225,1.18824311,2931.6,2931.4,0.04035806]
[1644767205427,0.12,2931.8,2931.4,0.04035806]
[1644767205629,1.45139344,2931.7,2931.1,0.79647664]
[1644767205828,3.45363849,2931.6,2931.4,0.01131088]
[1644767206030,3.37750565,2931.6,2931.4,0.01131088]
[1644767206231,0.12,2931.8,2931.4,0.01131088]
[1644767206632,1.45144406,2931.7,2931.4,0.01131088]
[1644767206835,3.43457128,2931.6,2930.9,2.04014962]
[1644767207032,3.43457128,2931.6,2931.5,0.0113107]
[1644767207231,0.02262139,2931.4,2931.0,0.8982596]
[1644767207869,0.02262139,2931.4,2931.0,0.85301]
[1644767209474,0.02262139,2931.4,2931.1,0.00505972]
[1644767210374,0.02262139,2931.4,2931.0,0.85301]
[1644767210572,0.05797169,2931.4,2931.1,0.00505963]
[1644767210974,0.05797169,2931.4,2931.1,1.71099963]
[1644767211177,0.00173495,2931.3,2931.1,1.71099963]
[1644767211624,0.00173495,2931.3,2931.1,1.70594]
[1644767211824,0.00173495,2931.3,2931.1,1.71725139]
[1644767212826,0.00173495,2931.3,2931.1,1.70594]
[1644767213024,0.00173495,2931.3,2931.1,1.71725139]
[1644767213225,0.00173495,2931.3,2931.1,2.01725139]
[1644767213427,0.00173495,2931.3,2931.1,3.01725139]
[1644767213626,0.00173495,2931.3,2931.1,1.71725139]
[1644767213826,0.00173495,2931.3,2931.1,2.71725139]
[1644767214027,0.00173495,2931.3,2931.1,2.70594]
[1644767214226,0.00173495,2931.3,2931.1,2.71725139]
[1644767215081,0.00173495,2931.3,2931.1,2.70594]
[1644767215272,0.00173495,2931.3,2931.2,0.3]
[1644767215472,0.00173495,2931.3,2931.2,20.3805]
[1644767215671,0.03720087,2931.3,2931.2,20.3805]
[1644767215871,0.00173495,2931.3,2931.2,21.3805]
[1644767217376,0.00173495,2931.3,2931.2,22.7858]
[1644767217580,0.00173495,2931.3,2931.2,1.7053]
[1644767217779,0.00173495,2931.3,2931.1,0.01131131]
[1644767218678,0.00173495,2931.3,2930.9,1.18713962]
[1644767218924,0.00173495,2931.3,2930.9,2.84315962]
[1644767219325,0.00173495,2931.3,2930.9,2.64315962]
[1644767219524,0.00173495,2931.3,2930.9,0.85302]
[1644767219727,0.00173495,2931.3,2930.8,1.2468]
[1644767219924,0.00173495,2931.3,2930.8,2.09985]
[1644767220126,0.00173495,2931.3,2930.8,2.95288]
[1644767220326,0.00173495,2931.3,2930.9,1.0]
[1644767220728,0.11833357,2931.3,2930.8,5.40569]
[1644767220926,0.11833357,2931.3,2930.9,1.0]
[1644767221127,0.11833357,2931.3,2930.9,1.70594]
[1644767221325,0.12014473,2931.3,2931.0,0.9852363]
[1644767221530,0.12014473,2931.3,2930.9,0.0112867]
[1644767221729,0.12014473,2931.3,2931.0,0.00312027]
[1644767222588,0.12014473,2931.3,2931.0,0.01128653]
[1644767223379,0.12014473,2931.3,2931.1,0.85288]
[1644767223983,0.12014473,2931.3,2931.0,1.71704653]
[1644767224679,0.12014473,2931.3,2931.0,1.70576]
[1644767225080,0.12014473,2931.3,2931.0,0.01128653]
[1644767225879,0.12014473,2931.3,2930.9,1.00655331]
[1644767226083,0.1230531,2931.3,2931.0,0.85303]
[1644767226331,0.03947222,2931.2,2931.0,0.86431653]
[1644767227133,0.03947222,2931.2,2931.0,0.85303]
[1644767227335,0.03947222,2931.2,2931.0,0.86431661]
[1644767228234,0.03947222,2931.2,2931.0,1.46431661]
[1644767228436,0.03947222,2931.2,2931.0,2.45303]
[1644767228637,0.00735033,2931.3,2931.1,1.47487129]
[1644767228839,0.00735033,2931.3,2931.2,2.00537]
[1644767229037,0.1705,2932.3,2931.3,4.65]
[1644767229340,1.45114324,2932.2,2932.1,0.94505371]
[1644767229537,0.60283264,2931.9,2931.5,1.08011384]
[1644767229739,0.60283264,2931.9,2931.5,2.23290384]
[1644767229938,0.60283264,2931.9,2931.6,0.85274]
[1644767230373,0.60283264,2931.9,2931.6,1.85274]
[1644767230974,0.60283264,2931.9,2931.6,2.70547]
[1644767231174,0.60283264,2931.9,2931.7,0.85278]
[1644767232079,0.60283264,2931.9,2931.7,2.00555]
[1644767232280,0.60283264,2931.9,2931.7,3.30555]
[1644767232482,0.60283264,2931.9,2931.7,2.45277]
[1644767232682,0.60283264,2931.9,2931.5,2.10340384]
[1644767232880,0.60283264,2931.9,2931.6,0.85279]
[1644767233081,0.60283264,2931.9,2931.6,0.85284]
[1644767233082,1.45115941,2931.8,2931.6,0.85284]
[1644767233283,1.45115941,2931.8,2931.5,1.25061384]
[1644767233284,4.77593969,2931.8,2931.5,1.25061384]
[1644767233485,1.45115941,2931.7,2931.5,1.25061384]
[1644767233682,1.45115941,2931.6,2931.5,0.1705]
[1644767233932,1.45115941,2931.8,2931.5,0.1705]
[1644767235335,1.45115941,2931.8,2931.5,1.02338]
[1644767235732,1.45115941,2931.8,2931.5,0.85288]
[1644767236133,1.45115941,2931.8,2931.5,1.70571]
[1644767236334,1.53805996,2931.8,2931.6,0.85286]
[1644767236536,1.53805996,2931.8,2931.4,0.01064373]
[1644767236537,1.45115941,2931.7,2931.4,0.01064373]
[1644767236737,1.45115941,2931.7,2931.2,1.2197]
[1644767237137,1.45115941,2931.7,2931.4,0.01064383]
[1644767237984,1.45115941,2931.7,2931.4,0.85292]
[1644767238181,1.45115941,2931.7,2931.4,0.86356354]
[1644767238382,1.45115941,2931.7,2931.4,1.71647354]
[1644767239182,1.45115941,2931.7,2931.5,1.70566]
[1644767239382,1.45115941,2931.7,2931.5,2.70566]
[1644767239582,1.45115941,2931.7,2931.5,3.55843]
[1644767240383,1.45115941,2931.7,2931.6,0.85278]
[1644767240585,1.45113513,2931.7,2931.6,0.85278]
[1644767240783,0.6059865,2931.9,2931.6,0.90335838]
[1644767240983,1.45115726,2931.8,2931.6,0.05057838]
[1644767243728,1.45115726,2931.8,2931.7,0.85284]
[1644767246180,1.45115726,2931.8,2931.7,0.98224456]
[1644767247178,1.45115726,2931.8,2931.7,0.12940456]
[1644767248383,1.45115726,2931.8,2931.7,0.07940456]
[1644767248822,1.45115726,2931.8,2931.7,0.93221456]
[1644767249422,1.45115726,2931.8,2931.6,0.28760454]
[1644767249622,1.45115726,2931.8,2931.6,1.28760454]
[1644767250729,1.50856533,2931.8,2931.7,0.98232874]
[1644767250934,1.51185378,2931.8,2931.7,0.98232874]
[1644767251331,1.51185378,2931.8,2931.7,0.12951874]
[1644767255081,1.51185378,2931.8,2931.7,0.98235874]
[1644767255684,1.52854714,2931.8,2931.7,0.85284]
[1644767256084,1.47854714,2931.8,2931.7,0.85284]
[1644767256728,1.47854714,2931.8,2931.6,1.14047454]
[1644767256929,0.03883395,2931.8,2931.6,1.14047454]
[1644767257130,0.03883395,2931.8,2931.6,1.44047454]
[1644767257730,0.03883395,2931.8,2931.6,0.28760454]
[1644767258132,0.1705,2932.3,2931.8,4.95]
[1644767258133,0.64792384,2932.3,2931.8,4.95]
[1644767258333,2.97063707,2932.4,2932.0,4.65]
[1644767258531,0.86240064,2932.7,2932.1,3.5]
[1644767258532,0.63750054,2932.7,2932.1,3.5]
[1644767258735,1.71460064,2933.1,2932.4,4.95]
[1644767258931,1.71460064,2933.1,2932.5,1.0]
[1644767258932,0.86240064,2933.1,2932.5,1.0]
[1644767259131,11.03290064,2933.3,2932.6,0.86531961]
[1644767259330,11.03290064,2933.3,2933.2,1.03406788]
[1644767259730,10.1705,2933.3,2933.2,1.63406788]
[1644767259932,11.03290064,2933.3,2933.2,1.63406788]
[1644767260389,11.03290064,2933.3,2933.2,2.48644788]
[1644767260789,11.03290064,2933.3,2933.2,3.48644788]
[1644767261885,11.03290064,2933.3,2933.2,2.45238]
[1644767262086,11.03290064,2933.3,2933.2,1.6]
[1644767262288,11.03290064,2933.3,2933.2,0.6]
[1644767262485,11.02431684,2933.3,2933.1,1.6]
[1644767262686,10.85381684,2933.3,2933.1,0.3]
[1644767262886,10.85381684,2933.3,2932.8,0.85251]
[1644767262887,0.86339529,2933.2,2933.0,0.3]
[1644767263087,0.86339529,2933.1,2932.9,1.23263573]
[1644767263286,0.86339529,2933.1,2932.9,1.53263573]
[1644767263487,0.86339529,2933.1,2932.9,0.6]
[1644767263688,0.86339529,2933.1,2932.9,0.3]
[1644767263923,0.86339529,2933.1,2932.6,1.6]
[1644767264121,0.86339529,2933.1,2932.6,1.3]
[1644767264323,0.86339529,2933.0,2932.5,3.6247]
[1644767264725,0.87407495,2933.0,2932.5,3.6247]
[1644767264923,0.87407495,2933.0,2932.4,1.1499]
[1644767265223,0.86339529,2932.9,2932.1,0.1703]
[1644767265922,0.01068026,2932.6,2932.3,0.96291234]
[1644767266327,0.01068026,2932.6,2932.3,2.66824234]
[1644767266727,0.86339529,2932.9,2932.3,2.66824234]
[1644767267128,0.01068035,2932.6,2932.3,2.66824234]
[1644767267776,0.01068035,2932.6,2932.4,1.70512]
[1644767267975,0.86339529,2932.9,2932.4,2.55773]
[1644767268175,0.86339529,2932.9,2932.4,1.70512]
[1644767268375,0.01068114,2932.6,2932.4,1.70512]
[1644767268776,0.65817591,2932.6,2932.4,1.70512]
[1644767269181,0.64749477,2932.7,2932.4,1.70512]
[1644767269376,0.01068105,2932.6,2932.4,1.70512]
[1644767269576,0.65817582,2932.6,2932.4,0.15726179]
[1644767270179,0.01068105,2932.6,2932.4,0.75726179]
[1644767270380,0.64749477,2932.7,2932.4,1.60989179]
[1644767270578,0.64749477,2932.7,2932.5,0.10639995]
[1644767270778,0.86339529,2933.0,2932.5,0.10639995]
[1644767270779,0.01068105,2932.6,2932.5,0.10639995]
[1644767271632,0.64749477,2932.8,2932.5,2.66382995]
[1644767271834,0.01068087,2932.7,2932.6,0.85246]
[1644767272032,0.65817564,2932.7,2932.6,0.85246]
[1644767272833,0.64749477,2932.7,2932.6,1.70494]
[1644767274732,0.1306807,2932.8,2932.6,1.70494]
[1644767275175,0.12,2932.8,2932.6,1.70494]
[1644767275473,0.06534022,2932.7,2932.6,1.730459]
[1644767275675,0.06534022,2932.7,2932.6,0.025519]
[1644767276074,1.51880014,2932.7,2932.6,0.025519]
[1644767278380,2.16599933,2932.7,2932.6,0.025519]
[1644767278581,1.51880014,2932.7,2932.6,0.025519]
[1644767278829,1.51880014,2932.7,2932.6,1.730419]
[1644767279528,0.06766401,2932.7,2932.6,1.730419]
[1644767279731,1.51871795,2932.7,2932.6,1.730419]
[1644767280530,1.49651586,2932.7,2932.6,1.74313113]
[1644767280928,2.14371505,2932.7,2932.6,1.74313113]
[1644767281128,2.14371505,2932.7,2932.6,4.90563483]
[1644767281329,1.49651586,2932.7,2932.6,6.67593483]
[1644767282336,0.05773669,2932.8,2932.7,4.95]
[1644767282586,0.1703,2933.2,2932.7,28.67479702]
[1644767282776,0.1703,2933.2,2932.8,20.76217]
[1644767283075,0.1703,2933.2,2932.9,6.3986296]
[1644767283375,10.11149802,2933.3,2932.9,6.3986296]
[1644767283376,10.63869721,2933.3,2933.0,0.3]
[1644767283576,10.63869721,2933.3,2933.1,2.88303053]
[1644767283778,10.63869721,2933.3,2933.2,1.7703]
[1644767283977,10.63869721,2933.3,2933.2,3.47489]
[1644767284381,10.63869721,2933.3,2933.2,1.87489]
[1644767284883,10.63869721,2933.3,2933.2,1.70459]
[1644767285283,10.63869721,2933.3,2933.2,2.70459]
[1644767285681,10.63869721,2933.3,2933.2,3.30459]
[1644767285881,9.99149802,2933.3,2933.2,3.30459]
[1644767286081,10.63869721,2933.3,2933.2,3.30459]
[1644767286531,0.64719919,2933.3,2933.2,3.30459]
[1644767286732,9.99149802,2933.3,2933.2,3.30459]
[1644767287735,10.63869721,2933.3,2933.2,3.30459]
[1644767288335,10.63869721,2933.3,2933.2,3.00459]
[1644767288535,9.99149802,2933.3,2933.2,3.30459]
[1644767288734,9.99149802,2933.3,2933.2,2.00459]
[1644767288936,9.99149802,2933.3,2933.2,3.00459]
[1644767289235,10.63869721,2933.3,2933.2,2.70459]
[1644767289434,10.63869721,2933.3,2933.2,1.70459]
[1644767289634,10.63869721,2933.3,2933.2,0.15701436]
[1644767290678,10.72500173,2933.3,2933.2,0.26785963]
[1644767291378,10.72757024,2933.3,2933.2,0.26785963]
[1644767294030,10.72757024,2933.3,2933.2,0.11084527]
[1644767294428,10.72757024,2933.3,2933.2,0.05684527]
[1644767294629,10.94376634,2933.3,2933.2,0.05684527]
[1644767294829,10.08037105,2933.3,2933.2,0.05684527]
[1644767295830,10.25077105,2933.3,2933.2,0.05684527]
[1644767296032,10.25647369,2933.3,2933.2,0.11084527]
[1644767297234,10.25647369,2933.3,2933.2,0.08534527]
[1644767297435,10.25647369,2933.3,2933.2,0.00281553]
[1644767297436,12.35647369,2933.3,2933.2,0.00281553]
[1644767297681,0.85276,2932.9,2932.1,0.3]
[1644767297882,0.64667262,2932.6,2932.1,1.0]
[1644767298076,0.64667262,2932.6,2932.0,2.45274]
[1644767298682,0.64667262,2932.6,2932.1,1.70544]
[1644767298982,0.01068083,2932.7,2932.1,1.85272]
[1644767298983,0.65735345,2932.7,2932.1,1.85272]
[1644767299380,0.64667262,2932.7,2932.1,0.85272]
[1644767299582,0.01068099,2932.5,2932.1,1.85272]
[1644767299782,0.01068099,2932.5,2932.2,0.85268]
[1644767299982,0.01068099,2932.5,2932.2,1.70529]
[1644767300181,0.01068099,2932.5,2932.2,0.85261]
[1644767300385,0.64667262,2932.7,2932.2,0.85261]
[1644767300784,0.01068099,2932.5,2932.2,0.85261]
[1644767300983,0.01068099,2932.5,2932.3,0.85262]
[1644767301183,0.01068099,2932.5,2932.3,1.70522]
[1644767301430,0.65735361,2932.5,2932.3,1.70522]
[1644767301627,0.64667262,2932.5,2932.3,1.70522]
[1644767301827,0.64667262,2932.5,2932.3,2.55783]
[1644767302028,0.6573538,2932.5,2932.3,2.55783]
[1644767302426,1.45117648,2932.4,2932.3,2.55783]
[1644767302629,1.45117648,2932.4,2932.3,1.70522]
[1644767304230,0.01068108,2932.5,2932.3,1.70522]
[1644767304432,1.45117648,2932.4,2932.3,3.30522]
[1644767304631,1.45117648,2932.4,2932.3,2.00522]
[1644767304831,1.45117648,2932.4,2932.3,3.30522]
[1644767305693,1.4829874,2932.4,2932.3,3.30522]
[1644767305889,1.4829874,2932.4,2932.3,1.85262]
[1644767306090,1.48918908,2932.4,2932.3,1.85262]
[1644767306696,1.48918908,2932.4,2932.3,1.0]
[1644767306896,1.48918908,2932.4,2932.2,3.41025]
[1644767307096,0.0380126,2932.4,2932.3,1.0]
[1644767307296,1.48911822,2932.4,2932.3,1.0]
[1644767307897,1.48911822,2932.4,2932.3,0.99897977]
[1644767309026,1.48911822,2932.4,2932.2,3.41025]
[1644767309226,1.45110562,2932.3,2932.2,3.41025]
[1644767309625,1.45110562,2932.3,2932.2,1.86235748]
[1644767311127,1.45110562,2932.3,2932.2,5.14140362]
[1644767315679,1.48289923,2932.3,2932.2,5.14140362]
[1644767316083,1.48604829,2932.3,2932.2,5.14140362]
[1644767316327,1.48604829,2932.3,2932.2,1.86235748]
[1644767318134,1.48604829,2932.3,2932.0,4.23764039]
[1644767318334,1.45110562,2932.2,2932.0,1.27760978]
[1644767318736,1.45110562,2932.2,2932.0,1.57760978]
[1644767318935,1.45110562,2932.2,2932.1,3.16422183]
[1644767319138,1.45110562,2932.2,2932.0,1.44810978]
[1644767319736,1.45110562,2932.2,2932.0,1.14810978]
[1644767321579,0.06605373,2932.3,2932.0,1.14810978]
[1644767321879,1.45116891,2932.2,2932.0,1.14810978]
[1644767322279,1.45116891,2932.2,2932.0,0.97760978]
[1644767322878,1.45116891,2932.2,2932.0,1.27760978]
[1644767323478,1.45116891,2932.2,2932.0,0.3]
[1644767323678,1.45116891,2932.2,2931.8,0.01068324]
[1644767324528,1.45116891,2932.2,2931.7,1.6]
[1644767324728,1.45116891,2932.2,2931.7,0.3]
[1644767324925,1.45116891,2932.2,2931.6,1.3]
[1644767324926,1.45116891,2932.2,2931.8,0.01068305]
[1644767325127,1.45116891,2932.2,2931.8,0.31068305]
[1644767325326,1.45116891,2932.2,2931.8,1.31068305]
[1644767325727,0.05669895,2932.1,2931.8,1.3]
[1644767325927,1.45116891,2932.0,2931.8,4.51060468]
[1644767326127,1.45116891,2932.0,2931.9,3.15953738]
[1644767326326,1.45116891,2932.0,2931.9,4.15953738]
[1644767326829,1.45116891,2932.0,2931.9,1.0]
[1644767327433,1.45116891,2932.0,2931.8,1.61068302]
[1644767328079,1.45116891,2932.0,2931.8,1.6]
[1644767328282,1.45116891,2932.0,2931.8,0.61068312]
[1644767328481,1.45116891,2932.0,2931.8,4.78303994]
[1644767328886,1.45116891,2932.0,2931.8,1.61068312]
[1644767329089,1.45116891,2932.0,2931.8,4.81291115]
[1644767329285,1.45116891,2932.0,2931.9,1.0]
[1644767329886,1.45116891,2932.0,2931.8,0.0627131]
[1644767330086,1.45116891,2932.0,2931.9,1.0]
[1644767330288,1.45116891,2932.0,2931.8,0.01068312]
[1644767330487,1.50787165,2932.0,2931.8,3.16496889]
[1644767330686,1.45116891,2931.9,2931.8,0.01068303]
[1644767331330,1.45501028,2931.9,2931.8,1.31068303]
[1644767331534,1.45501028,2931.9,2931.8,4.48474553]
[1644767331739,1.45501028,2931.9,2931.8,1.3]
[1644767332134,1.45501028,2931.9,2931.8,4.47451425]
[1644767332334,1.45501028,2931.9,2931.8,4.50612373]
[1644767332535,1.45501028,2931.9,2931.8,1.3]
[1644767332935,1.45501028,2931.9,2931.8,4.51461367]
[1644767333134,1.45501028,2931.9,2931.8,1.3]
[1644767333335,1.45501028,2931.9,2931.8,3.54435073]
[1644767333734,1.45501028,2931.9,2931.8,4.54435073]
[1644767334437,1.45501028,2931.9,2931.8,1.3]
[1644767335779,1.45501028,2931.9,2931.8,0.3]
[1644767335978,1.48371105,2931.9,2931.8,1.32790886]
[1644767337484,1.48371105,2931.9,2931.8,4.55176817]
[1644767337688,1.48371105,2931.9,2931.8,1.32790886]
[1644767338835,0.34306605,2931.9,2931.8,0.32790886]
[1644767339036,0.34306605,2931.9,2931.8,1.32790886]
[1644767340451,0.34306605,2931.9,2931.8,4.51022669]
[1644767341239,0.34306605,2931.9,2931.8,1.32790886]
[1644767341637,0.34306605,2931.9,2931.8,24.41096742]
[1644767341837,0.34306605,2931.9,2931.8,21.23790886]
[1644767346087,0.34306605,2931.9,2931.8,1.32790886]
[1644767347936,0.3065755,2931.9,2931.8,1.32790886]
[1644767348537,0.3065755,2931.9,2931.8,1.27790886]
[1644767349739,0.3065755,2931.9,2931.8,0.27790886]
[1644767349939,0.3065755,2931.9,2931.8,1.27790886]
[1644767350190,0.3065755,2931.9,2931.8,0.27790886]
[1644767350387,0.3065755,2931.9,2931.8,4.44028479]
[1644767350588,0.3065755,2931.9,2931.8,4.43787173]
[1644767350887,0.3065755,2931.9,2931.8,4.41796262]
[1644767351090,0.3065755,2931.9,2931.8,1.27790886]
[1644767351690,1.3045755,2931.9,2931.8,1.27790886]
[1644767351889,1.3045755,2931.9,2931.8,0.27790886]
[1644767352088,1.3045755,2931.9,2931.8,1.27790886]
[1644767353488,1.3045755,2931.9,2931.8,4.44934514]
[1644767353932,1.3045755,2931.9,2931.8,1.27790886]
[1644767354734,1.3045755,2931.9,2931.8,4.43785264]
[1644767354937,1.3045755,2931.9,2931.8,1.27790886]
[1644767356140,1.3045755,2931.9,2931.8,21.18790886]
[1644767360088,1.3045755,2931.9,2931.8,21.36000015]
[1644767361942,1.3045755,2931.9,2931.8,21.18790886]